[Event "FIDE Womens Grand Swiss 2021"]
[Site "Riga"]
[Date "2021.11.03"]
[Round "7.25"]
[White "Milliet, Sophie"]
[Black "February, Jesse Nikki"]
[Result "1-0"]
[ECO "C10"]
[WhiteElo "2410"]
[BlackElo "1857"]
[Annotator "NA"]
[PlyCount "111"]
[EventDate "2021.10.27"]
[EventType "swiss"]
[EventCountry "LAT"]
[Tiebreak "Cut1 Buchholz+Sonneborn-Berger (Swiss)"]
[SourceTitle "playchess.com"]
[Source "ChessBase"]
[SourceQuality "1"]
[TimeControl "40/6000+30:20/3000+30:900+30"]

1. e4 {[%emt 0:10:03]} e6 {[%emt 0:10:25]} 2. d4 {[%emt 0:00:05]} d5 {[%emt 0:
00:06]} 3. Nc3 {[%emt 0:00:03]} dxe4 {[%emt 0:00:12]} 4. Nxe4 {[%emt 0:00:03]}
Nd7 {[%emt 0:00:14]} 5. Nf3 {[%emt 0:00:18]} Ngf6 {[%emt 0:00:15]} 6. Nxf6+ {
[%emt 0:00:45]} Nxf6 {[%emt 0:00:11]} 7. Ne5 {[%emt 0:00:18]} Be7 {[%emt 0:03:
11]} 8. Bd3 {[%emt 0:00:55]} O-O {[%emt 0:02:47]} 9. O-O {[%emt 0:00:12]} c5 {
[%emt 0:01:22]} 10. dxc5 {[%emt 0:00:48]} Qd5 {[%emt 0:03:31]} 11. Qe2 {
[%emt 0:25:52]} Qxc5 {[%emt 0:05:14]} 12. Bg5 {[%emt 0:01:31]} Rd8 {[%emt 0:07:
27]} 13. Rfe1 {[%emt 0:06:51]} Bd7 {[%emt 0:03:50]} 14. Bxf6 {[%emt 0:11:11]}
Bxf6 {[%emt 0:00:48]} 15. Qh5 {[%emt 0:07:35]} Bxe5 {[%emt 0:11:46]} 16. Rxe5 {
[%emt 0:00:10]} ({Worse is} 16. Qxe5 Qxe5 17. Rxe5 Bc6 $11) 16... g6 {[%emt 0:
03:58]} 17. Rxc5 {[%emt 0:00:44]} gxh5 {[%emt 0:00:09]} 18. Rxh5 {[%emt 0:00:
09]} f5 {[%emt 0:00:10]} 19. Re1 {[%emt 0:00:56]} Rf8 {[%emt 0:03:25]} 20. f4 {
[%emt 0:03:53]} Rae8 $18 {[%emt 0:02:15]} 21. Rh3 {[%emt 0:01:04]} Rf6 {
[%emt 0:01:22]} 22. Rhe3 {[%emt 0:01:49]} Kf7 {[%emt 0:01:48]} 23. c3 {[%emt 0:
11:36]} Rg8 {[%emt 0:02:08]} 24. Bc4 {[%emt 0:02:09]} Rg4 {[%emt 0:02:00]} 25.
g3 {[%emt 0:00:25]} Rg8 {[%emt 0:01:58]} 26. Bd5 {[%emt 0:03:13]} b6 {[%emt 0:
02:20]} 27. Bf3 {[%emt 0:00:10]} Ke7 {[%emt 0:01:23]} 28. Rd1 {[%emt 0:00:49]}
Be8 {[%emt 0:00:37]} 29. Red3 {[%emt 0:01:59]} h5 {[%emt 0:02:01]} 30. Rd8 {
[%emt 0:00:59]} Rff8 {[%emt 0:02:37]} 31. Ra8 {[%emt 0:01:14]} a5 {[%emt 0:01:
43]} 32. Ra7+ {[%emt 0:07:44]} Kf6 {[%emt 0:00:25]} 33. Rh7 {[%emt 0:02:46]}
Bg6 {[%emt 0:01:26]} 34. Rb7 {[%emt 0:00:05]} Rb8 {[%emt 0:02:21]} 35. Rdd7 {
[%emt 0:04:04]} Rgc8 {[%emt 0:04:20]} 36. Kf2 {[%emt 0:01:08]} Be8 {[%emt 0:02:
38]} 37. Rh7 {[%emt 0:02:45]} Bg6 {[%emt 0:01:13]} 38. Rhc7 {[%emt 0:00:12]}
Rd8 {[%emt 0:00:53]} 39. Rxb8 {[%emt 0:00:10]} Rxb8 {[%emt 0:00:08]} 40. Ke3 {
[%emt 0:01:40]} Bf7 {[%emt 0:03:38]} 41. a3 {[%emt 0:41:27]} Be8 {[%emt 0:24:
31]} 42. Rb7 {[%emt 0:04:56]} Rxb7 {[%emt 0:02:56]} 43. Bxb7 {[%emt 0:00:01]}
e5 {[%emt 0:00:26]} 44. fxe5+ {[%emt 0:00:15]} Kxe5 {[%emt 0:00:10]} 45. h4 {
[%emt 0:01:07]} Bf7 {[%emt 0:04:04]} 46. b4 {[%emt 0:00:12]} axb4 {[%emt 0:01:
29]} 47. cxb4 {[%emt 0:00:18]} Be8 {[%emt 0:01:26]} 48. Bf3 {[%emt 0:00:11]}
Ke6 {[%emt 0:05:18]} 49. Kf4 {[%emt 0:00:28]} Kf6 {[%emt 0:00:31]} 50. Bd1 {
[%emt 0:00:09]} Kg6 {[%emt 0:10:41]} 51. a4 {[%emt 0:00:57]} Bc6 {[%emt 0:01:
12]} 52. a5 {[%emt 0:00:08]} bxa5 {[%emt 0:00:45]} 53. bxa5 {[%emt 0:00:01]}
Be4 {[%emt 0:00:15]} 54. a6 {[%emt 0:00:13]} Kh6 {[%emt 0:00:36]} 55. a7 {
[%emt 0:00:04]} Kg6 {[%emt 0:00:54]} 56. Bf3 {[%emt 0:00:04]} 1-0

[Event "FIDE Womens Grand Swiss 2021"]
[Site "Riga"]
[Date "2021.11.04"]
[Round "8.7"]
[White "Pogonina, Natalija"]
[Black "Zawadzka, Jolanta"]
[Result "1-0"]
[ECO "E04"]
[WhiteElo "2467"]
[BlackElo "2428"]
[Annotator "ChessBase"]
[PlyCount "111"]
[EventDate "2021.10.27"]
[EventType "swiss"]
[EventCountry "LAT"]
[Tiebreak "Cut1 Buchholz+Sonneborn-Berger (Swiss)"]
[SourceTitle "playchess.com"]
[Source "ChessBase"]
[SourceQuality "1"]
[TimeControl "40/6000+30:20/3000+30:900+30"]

1. d4 {[%emt 0:10:04]} d5 {[%emt 0:10:05]} 2. c4 {[%emt 0:00:06]} e6 {[%emt 0:
00:04]} 3. Nf3 {[%emt 0:00:06]} Nf6 {[%emt 0:00:03]} 4. g3 {[%emt 0:00:07]}
dxc4 {[%emt 0:00:27]} 5. Bg2 {[%emt 0:00:12]} a6 {[%emt 0:00:16]} 6. O-O {
[%emt 0:00:35]} Nc6 {[%emt 0:00:19]} 7. e3 {[%emt 0:01:25]} Bd7 {[%emt 0:00:31]
} 8. Qe2 {[%emt 0:00:39]} Bd6 {[%emt 0:00:43]} 9. Nbd2 {[%emt 0:15:16]} O-O {
[%emt 0:02:12]} 10. Nxc4 {[%emt 0:00:37]} b5 {[%emt 0:00:36]} 11. Nxd6 {
[%emt 0:09:55]} cxd6 {[%emt 0:00:04]} 12. b3 {[%emt 0:00:14]} Rc8 {[%emt 0:03:
00]} 13. Ba3 {[%emt 0:06:31]} b4 {[%emt 0:04:28]} 14. Bb2 {[%emt 0:00:12]} Qb6
{[%emt 0:01:59]} 15. Nd2 {[%emt 0:04:41]} Na5 {[%emt 0:11:53]} 16. Rfc1 {
[%emt 0:04:20]} Bb5 {[%emt 0:03:07]} 17. Qd1 {[%emt 0:03:23]} d5 {[%emt 0:15:
29]} 18. a3 {[%emt 0:08:29]} Nc6 {[%emt 0:02:30]} 19. Nf3 {[%emt 0:08:19]} a5 {
[%emt 0:00:51]} 20. axb4 {[%emt 0:01:43]} Nxb4 {[%emt 0:06:09]} 21. Ne1 {
[%emt 0:03:24]} Ne4 {[%emt 0:07:26]} 22. f3 {[%emt 0:00:29]} Nd6 {[%emt 0:00:
40]} 23. Qd2 {[%emt 0:01:04]} Rxc1 {[%emt 0:11:32]} 24. Rxc1 {[%emt 0:00:09]}
Rc8 {[%emt 0:02:46]} 25. Ba3 {[%emt 0:04:12]} Rxc1 {[%emt 0:03:37]} 26. Qxc1 {
[%emt 0:00:08]} Ba6 {[%emt 0:02:08]} 27. Qd2 {[%emt 0:02:12]} Nf5 {[%emt 0:03:
28]} 28. Bxb4 {[%emt 0:13:20]} Qxb4 {[%emt 0:10:42]} 29. Qxb4 {[%emt 0:00:06]}
axb4 {[%emt 0:00:02]} 30. Nc2 {[%emt 0:00:10]} Be2 {[%emt 0:01:07]} 31. Kf2 {
[%emt 0:00:30]} Bd1 {[%emt 0:00:41]} 32. Na1 {[%emt 0:04:46]} e5 {[%emt 0:02:
26]} 33. g4 {[%emt 0:01:37]} Nh4 {[%emt 0:00:35]} 34. dxe5 {[%emt 0:01:26]}
Nxg2 {[%emt 0:00:47]} 35. Kxg2 {[%emt 0:00:06]} Kf8 {[%emt 0:00:08]} 36. g5 {
[%emt 0:03:12]} Ke7 {[%emt 0:01:49]} 37. Kf2 {[%emt 0:00:16]} Ke6 {[%emt 0:01:
24]} 38. f4 {[%emt 0:00:21]} Kf5 {[%emt 0:00:26]} 39. Ke1 {[%emt 0:00:13]} Bg4
{[%emt 0:00:21]} 40. Nc2 {[%emt 0:00:21]} Ke4 {[%emt 0:01:14]} 41. Kd2 {
[%emt 0:37:07]} Be6 {[%emt 0:21:36]} 42. Nd4 {[%emt 0:05:30]} Bd7 {[%emt 0:03:
50]} 43. Ke2 {[%emt 0:00:24]} Bg4+ {[%emt 0:04:44]} 44. Kf2 {[%emt 0:00:16]} g6
{[%emt 0:02:45]} 45. Nc6 {[%emt 0:08:59]} Bd1 {[%emt 0:00:41]} 46. Nxb4 {
[%emt 0:00:31]} Bxb3 {[%emt 0:01:05]} 47. Na6 {[%emt 0:01:08]} Bd1 {[%emt 0:02:
11]} 48. Nc5+ {[%emt 0:00:05]} Kf5 {[%emt 0:00:11]} 49. Nb7 {[%emt 0:01:38]}
Ba4 {[%emt 0:15:00]} 50. Nd6+ {[%emt 0:00:13]} Ke6 {[%emt 0:00:01]} 51. Ke2 {
[%emt 0:00:19]} Bd7 {[%emt 0:02:07]} 52. Kd3 {[%emt 0:00:22]} Bc6 {[%emt 0:00:
48]} 53. Kd4 {[%emt 0:00:10]} Ba4 {[%emt 0:01:03]} 54. Nb7 {[%emt 0:01:15]} Kf5
{[%emt 0:01:19]} 55. Nd8 {[%emt 0:01:17]} Be8 {[%emt 0:01:31]} 56. h3 {[%emt 0:
00:51]} 1-0

[Event "FIDE Womens Grand Swiss 2021"]
[Site "Riga"]
[Date "2021.11.04"]
[Round "8.8"]
[White "Cori T., Deysi"]
[Black "Shuvalova, Polina"]
[Result "1-0"]
[ECO "D70"]
[WhiteElo "2382"]
[BlackElo "2509"]
[Annotator "ChessBase"]
[PlyCount "121"]
[EventDate "2021.10.27"]
[EventType "swiss"]
[EventCountry "LAT"]
[Tiebreak "Cut1 Buchholz+Sonneborn-Berger (Swiss)"]
[SourceTitle "playchess.com"]
[Source "ChessBase"]
[SourceQuality "1"]
[TimeControl "40/6000+30:20/3000+30:900+30"]

1. d4 {[%emt 0:10:08]} Nf6 {[%emt 0:10:05]} 2. c4 {[%emt 0:00:42]} g6 {[%emt 0:
00:06]} 3. f3 {[%emt 0:03:50]} d5 {[%emt 0:08:08]} 4. cxd5 {[%emt 0:00:10]}
Nxd5 {[%emt 0:00:19]} 5. e4 {[%emt 0:00:02]} Nb6 {[%emt 0:01:32]} 6. Nc3 {
[%emt 0:01:59]} Bg7 {[%emt 0:00:20]} 7. Be3 {[%emt 0:00:23]} c6 {[%emt 0:08:55]
} 8. Rc1 {[%emt 0:12:38]} O-O {[%emt 0:03:39]} 9. h4 {[%emt 0:01:37]} h5 {
[%emt 0:07:06]} 10. b3 {[%emt 0:01:22]} Qd6 {[%emt 0:14:35]} 11. e5 {[%emt 0:
13:18]} Qb4 {[%emt 0:01:46]} 12. Kf2 {[%emt 0:07:18]} Na6 {[%emt 0:10:31]} 13.
Bd3 {[%emt 0:16:41]} Rd8 {[%emt 0:13:15]} 14. Nge2 {[%emt 0:00:04]} c5 {
[%emt 0:01:41]} 15. a3 {[%emt 0:09:12]} Qa5 {[%emt 0:01:51]} 16. Bd2 {[%emt 0:
02:57]} c4 {[%emt 0:04:25]} 17. Na4 {[%emt 0:05:34]} Qb5 {[%emt 0:03:17]} 18.
Bxc4 {[%emt 0:05:11]} Nxc4 {[%emt 0:01:13]} 19. bxc4 {[%emt 0:00:01]} Qd7 {
[%emt 0:01:08]} 20. Bg5 {[%emt 0:09:12]} Rb8 {[%emt 0:03:09]} 21. Nac3 {
[%emt 0:01:54]} Nc7 {[%emt 0:00:49]} 22. Qa4 {[%emt 0:02:42]} Qxa4 {[%emt 0:06:
33]} 23. Nxa4 {[%emt 0:00:01]} Kf8 {[%emt 0:00:07]} 24. Nac3 {[%emt 0:03:54]}
b6 {[%emt 0:00:27]} 25. a4 {[%emt 0:01:15]} a6 {[%emt 0:00:17]} 26. Bf4 {
[%emt 0:00:45]} Ne6 {[%emt 0:01:11]} 27. Be3 {[%emt 0:00:00]} Bd7 {[%emt 0:00:
07]} 28. Rb1 {[%emt 0:01:00]} Rdc8 {[%emt 0:00:59]} 29. Nd5 {[%emt 0:00:11]} b5
{[%emt 0:03:06]} 30. axb5 {[%emt 0:00:22]} axb5 {[%emt 0:00:12]} 31. c5 {
[%emt 0:00:07]} Nc7 {[%emt 0:01:11]} 32. Nb4 {[%emt 0:01:15]} Ra8 {[%emt 0:00:
41]} 33. Nc3 {[%emt 0:00:24]} f6 {[%emt 0:01:58]} 34. exf6 {[%emt 0:00:42]}
Bxf6 {[%emt 0:00:12]} 35. Nbd5 {[%emt 0:00:25]} Nxd5 {[%emt 0:00:57]} 36. Nxd5
{[%emt 0:00:01]} Bc6 {[%emt 0:01:39]} 37. Nb4 {[%emt 0:01:02]} Be8 {[%emt 0:00:
05]} 38. d5 {[%emt 0:00:37]} Kf7 {[%emt 0:00:54]} 39. Rb3 {[%emt 0:00:30]} Ra4
{[%emt 0:00:53]} 40. c6 {[%emt 0:00:29]} e6 {[%emt 0:00:38]} 41. dxe6+ {
[%emt 0:46:24]} Kxe6 {[%emt 0:21:12]} 42. Bg5 {[%emt 0:00:37]} Bd4+ {[%emt 0:
06:09]} 43. Kg3 {[%emt 0:00:22]} Kd6 {[%emt 0:03:23]} 44. Bf4+ {[%emt 0:01:33]}
Ke6 {[%emt 0:10:03]} 45. Re1+ {[%emt 0:00:54]} Kf7 {[%emt 0:00:28]} 46. Rd1 {
[%emt 0:00:41]} Bb6 {[%emt 0:04:07]} 47. Nd3 {[%emt 0:01:09]} Bxc6 {[%emt 0:01:
45]} 48. Ne5+ {[%emt 0:00:04]} Ke6 {[%emt 0:00:19]} 49. Nxc6 {[%emt 0:02:03]}
Rxc6 {[%emt 0:00:05]} 50. Re1+ {[%emt 0:00:23]} Kf7 {[%emt 0:01:06]} 51. Rxb5 {
[%emt 0:00:06]} Bc7 {[%emt 0:01:01]} 52. Bxc7 {[%emt 0:00:50]} Rxc7 {[%emt 0:
00:01]} 53. Rb6 {[%emt 0:00:36]} Ra2 {[%emt 0:03:01]} 54. Rd1 {[%emt 0:01:18]}
Rcc2 {[%emt 0:02:23]} 55. Rd7+ {[%emt 0:00:01]} Ke8 {[%emt 0:00:05]} 56. Rh7 {
[%emt 0:00:08]} Rxg2+ {[%emt 0:00:06]} 57. Kf4 {[%emt 0:00:02]} Ra4+ {[%emt 0:
00:28]} 58. Ke5 {[%emt 0:00:01]} Ra5+ {[%emt 0:01:42]} 59. Ke6 {[%emt 0:00:10]}
Re2+ {[%emt 0:00:31]} 60. Kf6 {[%emt 0:00:03]} Rf5+ {[%emt 0:01:42]} 61. Kxg6 {
[%emt 0:15:02]} 1-0

[Event "FIDE Womens Grand Swiss 2021"]
[Site "Riga"]
[Date "2021.11.04"]
[Round "8.15"]
[White "Vaishali R"]
[Black "Bivol, Alina"]
[Result "1-0"]
[ECO "C42"]
[WhiteElo "2419"]
[BlackElo "2392"]
[Annotator "NA"]
[PlyCount "97"]
[EventDate "2021.10.27"]
[EventType "swiss"]
[EventCountry "LAT"]
[Tiebreak "Cut1 Buchholz+Sonneborn-Berger (Swiss)"]
[SourceTitle "playchess.com"]
[Source "ChessBase"]
[SourceQuality "1"]
[TimeControl "40/6000+30:20/3000+30:900+30"]

1. e4 {[%emt 0:10:25]} e5 {[%emt 0:10:21]} 2. Nf3 {[%emt 0:00:06]} Nf6 {
[%emt 0:00:05]} 3. Nxe5 {[%emt 0:00:53]} d6 {[%emt 0:00:11]} 4. Nf3 {[%emt 0:
00:02]} Nxe4 {[%emt 0:00:07]} 5. Bd3 {[%emt 0:00:06]} d5 {[%emt 0:00:06]} 6.
O-O {[%emt 0:01:28]} Be7 {[%emt 0:07:49]} 7. Re1 {[%emt 0:00:14]} Bf5 {[%emt 0:
02:16]} 8. Nc3 {[%emt 0:08:48]} Nxc3 {[%emt 0:00:27]} 9. dxc3 {[%emt 0:00:03]}
Bxd3 {[%emt 0:00:33]} 10. Qxd3 {[%emt 0:00:02]} O-O {[%emt 0:01:49]} 11. Bf4 {
[%emt 0:14:30]} c6 {[%emt 0:07:15]} 12. Nd4 {[%emt 0:26:01]} Bg5 {[%emt 0:14:
34]} 13. Bxg5 {[%emt 0:04:34]} Qxg5 {[%emt 0:00:01]} 14. Re3 {[%emt 0:00:22]}
Nd7 {[%emt 0:07:29]} 15. Rae1 {[%emt 0:01:19]} g6 {[%emt 0:03:52]} 16. Re7 {
[%emt 0:02:35]} (16. Nf3 $5 {[%cal Rf3g5]} Qf4 17. Re7 $14) 16... Nc5 {[%emt 0:
01:51]} 17. Qf3 {[%emt 0:02:03]} Rab8 $11 {[%emt 0:01:42]} 18. R7e5 {[%emt 0:
02:35]} Qd2 {[%emt 0:01:50]} 19. R5e3 {[%emt 0:14:07]} Ne6 {[%emt 0:00:40]} 20.
Nxe6 {[%emt 0:00:41]} fxe6 {[%emt 0:00:05]} 21. Qe2 {[%emt 0:00:05]} Qxe2 {
[%emt 0:00:08]} 22. R3xe2 {[%emt 0:00:02]} Rbd8 {[%emt 0:01:01]} 23. Rxe6 {
[%emt 0:03:25]} d4 {[%emt 0:00:19]} 24. cxd4 {[%emt 0:02:30]} Rxd4 {[%emt 0:00:
06]} 25. f3 {[%emt 0:00:58]} Rf7 {[%emt 0:02:25]} 26. R1e2 {[%emt 0:00:19]}
Rfd7 {[%emt 0:00:10]} 27. Re8+ {[%emt 0:01:06]} Kf7 {[%emt 0:00:23]} 28. Rh8 {
[%emt 0:00:51]} Kg7 {[%emt 0:01:57]} 29. Rb8 {[%emt 0:00:39]} Rd1+ {[%emt 0:00:
38]} 30. Kf2 {[%emt 0:00:02]} Ra1 {[%emt 0:00:24]} 31. a3 {[%emt 0:00:42]} Rad1
{[%emt 0:04:39]} 32. Kg3 {[%emt 0:01:46]} Rc1 {[%emt 0:05:47]} 33. h4 {[%emt 0:
07:20]} Rb1 {[%emt 0:01:35]} 34. c3 {[%emt 0:01:06]} Kf7 {[%emt 0:01:38]} 35.
Kg4 {[%emt 0:00:34]} Rbd1 {[%emt 0:01:51]} 36. h5 {[%emt 0:03:18]} Rh1 {
[%emt 0:01:45]} 37. hxg6+ {[%emt 0:00:04]} hxg6 {[%emt 0:00:18]} 38. f4 {
[%emt 0:01:13]} Rhd1 {[%emt 0:01:00]} 39. g3 {[%emt 0:01:21]} Rg1 {[%emt 0:01:
19]} 40. Re3 {[%emt 0:01:34]} Rb1 {[%emt 0:08:15]} 41. Re2 {[%emt 0:23:09]} Rg1
{[%emt 0:21:42]} 42. Rh2 {[%emt 0:02:41]} Kg7 {[%emt 0:02:45]} 43. Rbh8 {
[%emt 0:00:19]} Rd3 {[%emt 0:02:40]} 44. R8h7+ {[%emt 0:01:05]} Kf6 {[%emt 0:
05:24]} 45. R2h3 {[%emt 0:00:19]} b6 {[%emt 0:00:20]} 46. Rxa7 {[%emt 0:01:06]}
Rg2 {[%emt 0:00:23]} 47. Rc7 {[%emt 0:00:19]} Rd6 {[%emt 0:00:23]} 48. Rhh7 {
[%emt 0:00:40]} Ke6 {[%emt 0:02:08]} 49. c4 {[%emt 0:00:23]} 1-0

[Event "FIDE Womens Grand Swiss 2021"]
[Site "Riga"]
[Date "2021.11.04"]
[Round "8.16"]
[White "Maltsevskaya, Aleksandra"]
[Black "Melia, Salome"]
[Result "1/2-1/2"]
[ECO "E05"]
[WhiteElo "2411"]
[BlackElo "2371"]
[Annotator "NA"]
[PlyCount "99"]
[EventDate "2021.10.27"]
[EventType "swiss"]
[EventCountry "LAT"]
[Tiebreak "Cut1 Buchholz+Sonneborn-Berger (Swiss)"]
[SourceTitle "playchess.com"]
[Source "ChessBase"]
[SourceQuality "1"]
[TimeControl "40/6000+30:20/3000+30:900+30"]

1. d4 {[%emt 0:10:06]} d5 {[%emt 0:13:06]} 2. Nf3 {[%emt 0:00:11]} Nf6 {
[%emt 0:00:04]} 3. c4 {[%emt 0:00:14]} e6 {[%emt 0:00:27]} 4. g3 {[%emt 0:00:
26]} Be7 {[%emt 0:02:04]} 5. Bg2 {[%emt 0:00:11]} O-O {[%emt 0:00:03]} 6. O-O {
[%emt 0:00:25]} dxc4 {[%emt 0:00:04]} 7. Qc2 {[%emt 0:03:26]} a6 {[%emt 0:01:
41]} 8. a4 {[%emt 0:00:26]} Bd7 {[%emt 0:00:11]} 9. Qxc4 {[%emt 0:10:05]} Bc6 {
[%emt 0:00:29]} 10. Qd3 {[%emt 0:00:50]} Be4 {[%emt 0:04:20]} 11. Qb3 {[%emt 0:
04:22]} Nc6 {[%emt 0:06:04]} 12. Nc3 {[%emt 0:03:07]} Na5 {[%emt 0:07:37]} 13.
Qd1 {[%emt 0:06:05]} Bc6 {[%emt 0:09:50]} 14. Rb1 {[%emt 0:10:28]} b5 {[%emt 0:
04:13]} 15. b4 {[%emt 0:01:35]} Nc4 {[%emt 0:00:16]} 16. axb5 {[%emt 0:08:05]}
axb5 {[%emt 0:00:12]} 17. Qb3 {[%emt 0:23:37]} Ra6 {[%emt 0:11:41]} 18. Re1 {
[%emt 0:14:16]} Qa8 {[%emt 0:10:44]} 19. Nxb5 $1 {[%emt 0:02:19]} Bxb5 {
[%emt 0:00:23]} 20. Ne5 {[%emt 0:00:06]} Qd8 {[%emt 0:00:56]} 21. Nxc4 $11 {
[%emt 0:00:11]} Qxd4 {[%emt 0:00:12]} 22. Na3 {[%emt 0:03:20]} Ba4 {[%emt 0:02:
22]} 23. Qe3 {[%emt 0:01:14]} c5 {[%emt 0:07:03]} 24. b5 {[%emt 0:04:39]} Rb6 {
[%emt 0:01:04]} 25. Bc6 {[%emt 0:00:32]} Nd5 {[%emt 0:05:11]} 26. Bxd5 {
[%emt 0:01:50]} Qxd5 {[%emt 0:08:59]} 27. Qf4 {[%emt 0:00:06]} c4 {[%emt 0:01:
41]} 28. Qxc4 {[%emt 0:01:44]} Qxc4 {[%emt 0:00:48]} 29. Nxc4 {[%emt 0:00:05]}
Rxb5 {[%emt 0:00:07]} 30. Ba3 {[%emt 0:00:51]} Rxb1 {[%emt 0:03:35]} 31. Rxb1 {
[%emt 0:00:06]} Bxa3 {[%emt 0:00:03]} 32. Nxa3 {[%emt 0:00:07]} f6 {[%emt 0:00:
56]} 33. Rb6 {[%emt 0:01:22]} e5 {[%emt 0:07:05]} 34. Nc4 {[%emt 0:00:30]} Bd1
{[%emt 0:01:16]} 35. Rb2 {[%emt 0:00:30]} Rd8 {[%emt 0:01:34]} 36. Kg2 {
[%emt 0:00:24]} Ba4 {[%emt 0:00:24]} 37. Rb6 {[%emt 0:00:36]} Bd1 {[%emt 0:01:
05]} 38. Kf1 {[%emt 0:00:30]} Bc2 {[%emt 0:00:26]} 39. Nd6 {[%emt 0:00:26]} Bg6
{[%emt 0:00:45]} 40. f3 {[%emt 0:00:32]} Kf8 {[%emt 0:00:33]} 41. Kf2 {[%emt 0:
50:24]} Ke7 {[%emt 0:21:38]} 42. Nc4 {[%emt 0:00:00]} Rd7 {[%emt 0:06:45]} 43.
Na5 {[%emt 0:00:00]} Rc7 {[%emt 0:01:45]} 44. Nc6+ {[%emt 0:00:00]} Kd7 {
[%emt 0:00:07]} 45. Nb4 {[%emt 0:00:00]} Bf7 {[%emt 0:00:21]} 46. Ke3 {[%emt 0:
00:00]} Rc3+ {[%emt 0:01:58]} 47. Kd2 {[%emt 0:00:00]} Rb3 {[%emt 0:04:48]} 48.
Rb7+ {[%emt 0:00:00]} Ke8 {[%emt 0:00:02]} 49. Rb8+ {[%emt 0:00:00]} Kd7 {
[%emt 0:00:31]} 50. Rb7+ {[%emt 0:00:00]} 1/2-1/2